[Event "DMP Ekstraliga 2020"]
[Site "Krakow"]
[Date "2020.08.29"]
[Round "4.8"]
[White "Pultinevicius, Paulius"]
[Black "Gajewski, Grzegorz"]
[Result "1-0"]
[ECO "A06"]
[WhiteElo "2519"]
[BlackElo "2616"]
[Annotator "ChessBase"]
[PlyCount "103"]
[EventDate "2020.08.26"]
[EventType "team-tourn"]
[EventCountry "POL"]
[SourceTitle "playchess.com"]
[Source "ChessBase"]
[SourceQuality "1"]
[WhiteTeam "Hetman Plock"]
[BlackTeam "HETMAN Katowice"]
[TimeControl "30/5400+30:1800+30"]

1. Nf3 {[%emt 0:00:00]} d5 {[%emt 0:00:00]} 2. e3 {[%emt 0:00:00]} Nf6 {[%emt 0:00:00]} 3. c4 {[%emt 0:00:00]} e6 {[%emt 0:00:05]} 4. b3 {[%emt 0:00:00]} Bd6 {[%emt 0:00:27]} 5. Bb2 {[%emt 0:00:00]} O-O {[%emt 0:00:07]} 6. Nc3 {[%emt 0:00:00]} Re8 {[%emt 0:00:41]} 7. Qc2 {[%emt 0:01:09]} c5 {[%emt 0:02:19]} 8. cxd5 {[%emt 0:10:10]} exd5 {[%emt 0:00:07]} 9. Bb5 {[%emt 0:00:17]} Nc6 {[%emt 0:01:24]} 10. Bxc6 {[%emt 0:02:12]} bxc6 {[%emt 0:00:06]} 11. Na4 {[%emt 0:01:36]} Ba6 {[%emt 0:21:59]} 12. Nxc5 {[%emt 0:02:51]} Bxc5 {[%emt 0:00:03]} 13. Qxc5 {[%emt 0:00:07]} Ne4 {[%emt 0:00:06]} 14. Qd4 {[%emt 0:07:22]} f6 {[%emt 0:00:07]} 15. Rc1 {[%emt 0:06:02]} c5 {[%emt 0:04:57]} 16. Rxc5 {[%emt 0:03:31]} Nxc5 {[%emt 0:03:18]} 17. Qxc5 {[%emt 0:00:04]} Rc8 {[%emt 0:01:02]} 18. Qa3 {[%emt 0:01:29]} Re6 {[%emt 0:19:06]} 19. Nd4 {[%emt 0:00:22]} Qe8 {[%emt 0:01:13]} 20. Rg1 {[%emt 0:27:50]} Qh5 {[%emt 0:07:26]} 21. h4 {[%emt 0:02:43]} Qg6 {[%emt 0:00:27]} 22. f3 {[%emt 0:01:29]} Qg3+ {[%emt 0:07:09]} 23. Kd1 {[%emt 0:00:04]} Qf2 {[%emt 0:00:09]} 24. Re1 {[%emt 0:00:05]} Qxg2 {[%emt 0:00:22]} 25. Qa5 {[%emt 0:00:31]} Qg6 {[%emt 0:02:32]} 26. e4 {[%emt 0:02:27]} dxe4 {[%emt 0:04:05]} 27. h5 {[%emt 0:10:25]} Qg5 {[%emt 0:18:03]} 28. Qxg5 {[%emt 0:00:36]} fxg5 {[%emt 0:00:01]} 29. Nxe6 {[%emt 0:01:14]} exf3 {[%emt 0:00:02]} 30. Bd4 {[%emt 0:11:10]} g4 {[%emt 0:01:37]} 31. Rg1 {[%emt 0:33:21]} Rc6 {[%emt 0:34:47]} 32. Nf4 {[%emt 0:00:55]} Bc8 {[%emt 0:00:21]} 33. Bxa7 {[%emt 0:02:00]} Ra6 {[%emt 0:00:14]} 34. Bd4 {[%emt 0:00:40]} Rxa2 {[%emt 0:00:02]} 35. Ke1 {[%emt 0:00:19]} Kf7 {[%emt 0:00:42]} 36. Bc3 {[%emt 0:00:16]} Ra7 {[%emt 0:02:19]} 37. Kf2 {[%emt 0:00:35]} Re7 {[%emt 0:00:08]} 38. Kg3 {[%emt 0:00:10]} Bf5 {[%emt 0:00:24]} 39. b4 {[%emt 0:00:33]} g5 {[%emt 0:00:51]} 40. hxg6+ {[%emt 0:00:00]} hxg6 {[%emt 0:00:00]} 41. Nd5 {[%emt 0:00:00]} Re4 {[%emt 0:00:00]} 42. Ne3 {[%emt 0:00:00]} Bc8 {[%emt 0:00:00]} 43. Ra1 {[%emt 0:00:00]} g5 {[%emt 0:00:00]} 44. Ra5 {[%emt 0:00:00]} Kg6 {[%emt 0:00:00]} 45. Re5 {[%emt 0:00:00]} Rf4 {[%emt 0:00:00]} 46. Re8 {[%emt 0:00:00]} Bb7 {[%emt 0:00:00]} 47. Rg8+ {[%emt 0:00:00]} Kh5 {[%emt 0:00:00]} 48. Rh8+ {[%emt 0:00:00]} Kg6 {[%emt 0:00:00]} 49. Nxg4 {[%emt 0:00:00]} f2 {[%emt 0:02:13]} 50. Rh6+ {[%emt 0:00:00]} Kf7 {[%emt 0:00:47]} 51. Nxf2 {[%emt 0:00:00]} Rf3+ {[%emt 0:00:04]} 52. Kg4 {[%emt 0:00:00]} 1-0

[Event "DMP Ekstraliga 2020"]
[Site "Krakow"]
[Date "2020.08.29"]
[Round "4.9"]
[White "Socko, Bartosz"]
[Black "Warakomski, Tomasz"]
[Result "1-0"]
[ECO "B42"]
[WhiteElo "2601"]
[BlackElo "2515"]
[Annotator "ChessBase"]
[PlyCount "123"]
[EventDate "2020.08.26"]
[EventType "team-tourn"]
[EventCountry "POL"]
[SourceTitle "playchess.com"]
[Source "ChessBase"]
[SourceQuality "1"]
[WhiteTeam "HETMAN Katowice"]
[BlackTeam "Hetman Plock"]
[TimeControl "30/5400+30:1800+30"]

1. e4 {[%emt 0:00:00]} c5 {[%emt 0:04:15]} 2. Nf3 {[%emt 0:00:00]} e6 {[%emt 0:00:03]} 3. d4 {[%emt 0:00:00]} cxd4 {[%emt 0:00:03]} 4. Nxd4 {[%emt 0:00:00]} a6 {[%emt 0:00:02]} 5. Bd3 {[%emt 0:00:19]} Bc5 {[%emt 0:00:05]} 6. Nb3 {[%emt 0:00:18]} Ba7 {[%emt 0:00:04]} 7. O-O {[%emt 0:00:30]} Nc6 {[%emt 0:03:17]} 8. Qg4 {[%emt 0:01:26]} Qf6 {[%emt 0:05:50]} 9. Nc3 {[%emt 0:04:34]} Nge7 {[%emt 0:20:15]} 10. Kh1 {[%emt 0:06:40]} h5 {[%emt 0:32:58]} 11. Qe2 {[%emt 0:02:25]} Ne5 {[%emt 0:04:56]} 12. f4 {[%emt 0:01:07]} Nxd3 {[%emt 0:02:37]} 13. cxd3 {[%emt 0:04:53]} d5 {[%emt 0:00:57]} 14. Be3 {[%emt 0:03:02]} Bxe3 {[%emt 0:01:32]} 15. Qxe3 {[%emt 0:00:14]} O-O {[%emt 0:00:08]} 16. Rae1 {[%emt 0:05:01]} dxe4 {[%emt 0:02:13]} 17. dxe4 {[%emt 0:01:23]} e5 {[%emt 0:00:11]} 18. f5 {[%emt 0:00:48]} Bd7 {[%emt 0:03:56]} 19. Rd1 {[%emt 0:07:25]} Rad8 {[%emt 0:03:27]} 20. Na5 {[%emt 0:01:44]} Bc8 {[%emt 0:00:43]} 21. Nc4 {[%emt 0:02:40]} Rd4 {[%emt 0:00:30]} 22. Qe2 {[%emt 0:01:45]} Rfd8 {[%emt 0:00:05]} 23. Qxh5 {[%emt 0:01:59]} Nxf5 {[%emt 0:00:23]} 24. exf5 {[%emt 0:02:43]} Rxc4 {[%emt 0:00:36]} 25. Nd5 {[%emt 0:01:01]} Rxd5 {[%emt 0:01:34]} 26. Rxd5 {[%emt 0:00:15]} Bxf5 {[%emt 0:00:12]} 27. Qe2 {[%emt 0:06:22]} Re4 {[%emt 0:00:45]} 28. Qxe4 {[%emt 0:07:25]} Bxe4 {[%emt 0:00:06]} 29. Rxf6 {[%emt 0:00:08]} Bxd5 {[%emt 0:00:03]} 30. Rb6 {[%emt 0:01:07]} e4 {[%emt 0:07:48]} 31. Kg1 {[%emt 0:32:18]} e3 {[%emt 0:30:05]} 32. Kf1 {[%emt 0:02:02]} e2+ {[%emt 0:01:50]} 33. Kxe2 {[%emt 0:00:16]} Bxg2 {[%emt 0:00:03]} 34. Ke3 {[%emt 0:00:50]} Kh7 {[%emt 0:00:07]} 35. Rd6 {[%emt 0:01:20]} f6 {[%emt 0:00:18]} 36. a4 {[%emt 0:00:54]} Bc6 {[%emt 0:00:40]} 37. b3 {[%emt 0:00:41]} Kg6 {[%emt 0:00:27]} 38. Kf4 {[%emt 0:01:24]} Bh1 {[%emt 0:00:51]} 39. b4 {[%emt 0:01:15]} Kf7 {[%emt 0:00:24]} 40. Rd7+ {[%emt 0:00:00]} Kg6 {[%emt 0:00:00]} 41. Rc7 {[%emt 0:00:00]} Bd5 {[%emt 0:00:00]} 42. h4 {[%emt 0:00:00]} Kh6 {[%emt 0:00:00]} 43. Kf5 {[%emt 0:00:00]} Bf3 {[%emt 0:00:00]} 44. Rc8 {[%emt 0:00:00]} Kh7 {[%emt 0:00:00]} 45. b5 {[%emt 0:00:00]} axb5 {[%emt 0:00:00]} 46. axb5 {[%emt 0:00:00]} Bg2 {[%emt 0:00:00]} 47. Rc3 {[%emt 0:00:00]} Kh6 {[%emt 0:00:00]} 48. b6 {[%emt 0:00:00]} Bf1 {[%emt 0:00:00]} 49. Rg3 {[%emt 0:00:00]} Be2 {[%emt 0:00:00]} 50. Ke4 {[%emt 0:00:00]} Bf1 {[%emt 0:01:37]} 51. Rg1 {[%emt 0:00:00]} Bh3 {[%emt 0:00:17]} 52. Kf3 {[%emt 0:01:04]} Be6 {[%emt 0:00:07]} 53. Rd1 {[%emt 0:01:04]} Kh5 {[%emt 0:04:40]} 54. Rd6 {[%emt 0:00:52]} Bc8 {[%emt 0:00:09]} 55. Kg3 {[%emt 0:01:25]} Kg6 {[%emt 0:00:26]} 56. Kf4 {[%emt 0:01:28]} Bh3 {[%emt 0:00:35]} 57. Rd3 {[%emt 0:01:32]} Be6 {[%emt 0:00:07]} 58. Rd8 {[%emt 0:00:27]} Kh7 {[%emt 0:00:24]} 59. h5 {[%emt 0:03:04]} Bh3 {[%emt 0:01:33]} 60. h6 {[%emt 0:05:31]} gxh6 {[%emt 0:01:07]} 61. Kg3 {[%emt 0:00:20]} Bf5 {[%emt 0:00:14]} 62. Re8 {[%emt 0:00:08]} 1-0

[Event "DMP Ekstraliga 2020"]
[Site "Krakow"]
[Date "2020.08.29"]
[Round "4.10"]
[White "Grabarczyk, Miroslaw"]
[Black "Miton, Kamil"]
[Result "1/2-1/2"]
[ECO "A50"]
[WhiteElo "2368"]
[BlackElo "2590"]
[Annotator "ChessBase"]
[PlyCount "110"]
[EventDate "2020.08.26"]
[EventType "team-tourn"]
[EventCountry "POL"]
[SourceTitle "playchess.com"]
[Source "ChessBase"]
[SourceQuality "1"]
[WhiteTeam "Hetman Plock"]
[BlackTeam "HETMAN Katowice"]
[TimeControl "30/5400+30:1800+30"]

1. d4 {[%emt 0:00:00]} Nf6 {[%emt 0:00:00]} 2. c4 {[%emt 0:00:00]} b6 {[%emt 0:00:01]} 3. Nc3 {[%emt 0:04:34]} Bb7 {[%emt 0:01:12]} 4. Nf3 {[%emt 0:00:45]} e6 {[%emt 0:00:45]} 5. a3 {[%emt 0:00:19]} g6 {[%emt 0:01:23]} 6. g3 {[%emt 0:05:35]} Bg7 {[%emt 0:21:40]} 7. Bg2 {[%emt 0:00:35]} Ne4 {[%emt 0:01:00]} 8. Nxe4 {[%emt 0:05:17]} Bxe4 {[%emt 0:00:05]} 9. Bg5 {[%emt 0:00:26]} Qc8 {[%emt 0:03:03]} 10. O-O {[%emt 0:02:00]} h6 {[%emt 0:08:55]} 11. Bd2 {[%emt 0:06:21]} d6 {[%emt 0:01:41]} 12. Bc3 {[%emt 0:03:16]} Nd7 {[%emt 0:03:23]} 13. Ne1 {[%emt 0:08:17]} Bxg2 {[%emt 0:00:22]} 14. Nxg2 {[%emt 0:00:07]} Qa6 {[%emt 0:03:06]} 15. b3 {[%emt 0:07:00]} b5 {[%emt 0:00:32]} 16. Ne3 {[%emt 0:03:36]} bxc4 {[%emt 0:02:16]} 17. Nxc4 {[%emt 0:03:47]} O-O {[%emt 0:04:31]} 18. Qc2 {[%emt 0:07:13]} Rfc8 {[%emt 0:04:44]} 19. e4 {[%emt 0:10:15]} d5 {[%emt 0:02:10]} 20. exd5 {[%emt 0:00:18]} exd5 {[%emt 0:00:04]} 21. Ne3 {[%emt 0:00:07]} c6 {[%emt 0:00:33]} 22. b4 {[%emt 0:09:13]} h5 {[%emt 0:04:44]} 23. Rfd1 {[%emt 0:03:37]} Nf8 {[%emt 0:01:36]} 24. Qd3 {[%emt 0:02:34]} Qb7 {[%emt 0:00:21]} 25. Rab1 {[%emt 0:04:44]} Ne6 {[%emt 0:05:45]} 26. Nc2 {[%emt 0:01:43]} Qd7 {[%emt 0:06:45]} 27. Bd2 {[%emt 0:01:24]} Bf6 {[%emt 0:02:45]} 28. Be3 {[%emt 0:01:23]} h4 {[%emt 0:03:13]} 29. Ne1 {[%emt 0:01:27]} hxg3 {[%emt 0:03:59]} 30. hxg3 {[%emt 0:02:44]} Kg7 {[%emt 0:00:44]} 31. b5 {[%emt 0:31:02]} Rab8 {[%emt 0:33:59]} 32. bxc6 {[%emt 0:01:19]} Qxc6 {[%emt 0:00:05]} 33. Nf3 {[%emt 0:00:28]} Qa4 {[%emt 0:01:27]} 34. Kg2 {[%emt 0:00:56]} Rh8 {[%emt 0:03:16]} 35. Rdc1 {[%emt 0:01:00]} Qd7 {[%emt 0:01:08]} 36. Rh1 {[%emt 0:00:24]} Rxb1 {[%emt 0:01:02]} 37. Qxb1 {[%emt 0:02:25]} Rxh1 {[%emt 0:00:27]} 38. Kxh1 {[%emt 0:01:03]} Qa4 {[%emt 0:03:09]} 39. Qb7 {[%emt 0:00:48]} Qxa3 {[%emt 0:02:00]} 40. Qxd5 {[%emt 0:00:00]} a5 {[%emt 0:00:00]} 41. Qa8 {[%emt 0:00:00]} Qa2 {[%emt 0:00:00]} 42. Kg2 {[%emt 0:00:00]} Nc7 {[%emt 0:00:00]} 43. Qb7 {[%emt 0:00:00]} Nd5 {[%emt 0:00:00]} 44. Bc1 {[%emt 0:00:00]} a4 {[%emt 0:00:00]} 45. Ne5 {[%emt 0:00:00]} Ne7 {[%emt 0:00:00]} 46. Qa7 {[%emt 0:00:00]} Nf5 {[%emt 0:00:00]} 47. Qa8 {[%emt 0:00:00]} Qb3 {[%emt 0:00:40]} 48. Qe8 {[%emt 0:00:00]} Qd5+ {[%emt 0:01:15]} 49. Kg1 {[%emt 0:00:27]} Nxd4 {[%emt 0:03:28]} 50. Nd7 {[%emt 0:00:54]} Nf3+ {[%emt 0:00:58]} 51. Kf1 {[%emt 0:00:43]} Qd1+ {[%emt 0:00:39]} 52. Kg2 {[%emt 0:00:06]} Ne1+ {[%emt 0:00:24]} 53. Kg1 {[%emt 0:01:09]} Nf3+ {[%emt 0:00:35]} 54. Kg2 {[%emt 0:00:04]} Ne1+ {[%emt 0:00:30]} 55. Kg1 {[%emt 0:00:17]} Nf3+ {[%emt 0:00:27]} 1/2-1/2

[Event "DMP Ekstraliga 2020"]
[Site "Krakow"]
[Date "2020.08.29"]
[Round "4.11"]
[White "Sadzikowski, Daniel"]
[Black "Sabuk, Piotr"]
[Result "1/2-1/2"]
[ECO "D37"]
[WhiteElo "2522"]
[BlackElo "2377"]
[Annotator "ChessBase"]
[PlyCount "95"]
[EventDate "2020.08.26"]
[EventType "team-tourn"]
[EventCountry "POL"]
[SourceTitle "playchess.com"]
[Source "ChessBase"]
[SourceQuality "1"]
[WhiteTeam "HETMAN Katowice"]
[BlackTeam "Hetman Plock"]
[TimeControl "30/5400+30:1800+30"]

1. d4 {[%emt 0:00:00]} Nf6 {[%emt 0:00:00]} 2. c4 {[%emt 0:00:00]} e6 {[%emt 0:00:00]} 3. Nf3 {[%emt 0:00:00]} d5 {[%emt 0:00:36]} 4. Nc3 {[%emt 0:00:00]} a6 {[%emt 0:03:49]} 5. cxd5 {[%emt 0:00:41]} exd5 {[%emt 0:00:07]} 6. Bg5 {[%emt 0:00:05]} c6 {[%emt 0:07:46]} 7. e3 {[%emt 0:04:05]} Nbd7 {[%emt 0:03:46]} 8. Bd3 {[%emt 0:03:34]} Be7 {[%emt 0:01:48]} 9. Qc2 {[%emt 0:07:07]} Nf8 {[%emt 0:02:40]} 10. O-O {[%emt 0:03:09]} Ne6 {[%emt 0:00:36]} 11. Bh4 {[%emt 0:02:40]} g6 {[%emt 0:01:00]} 12. Rfe1 {[%emt 0:14:20]} O-O {[%emt 0:04:01]} 13. Na4 {[%emt 0:04:56]} Re8 {[%emt 0:13:44]} 14. Rac1 {[%emt 0:03:32]} Ng7 {[%emt 0:12:00]} 15. Qb3 {[%emt 0:01:11]} Ne4 {[%emt 0:00:48]} 16. Bxe7 {[%emt 0:02:53]} Rxe7 {[%emt 0:02:44]} 17. Bxe4 {[%emt 0:19:26]} dxe4 {[%emt 0:04:26]} 18. Ne5 {[%emt 0:01:11]} Be6 {[%emt 0:03:14]} 19. Qb6 {[%emt 0:06:20]} Qxb6 {[%emt 0:04:33]} 20. Nxb6 {[%emt 0:00:02]} Rd8 {[%emt 0:00:50]} 21. b3 {[%emt 0:01:24]} Ne8 {[%emt 0:06:12]} 22. Rc5 {[%emt 0:00:34]} Kg7 {[%emt 0:03:09]} 23. Rec1 {[%emt 0:00:19]} Nc7 {[%emt 0:00:54]} 24. Nec4 {[%emt 0:02:52]} Bd5 {[%emt 0:04:05]} 25. Na5 {[%emt 0:00:58]} Ne6 {[%emt 0:00:35]} 26. R5c3 {[%emt 0:06:10]} f5 {[%emt 0:01:32]} 27. a4 {[%emt 0:01:44]} Rf7 {[%emt 0:03:40]} 28. b4 {[%emt 0:02:23]} f4 {[%emt 0:01:32]} 29. Rb1 {[%emt 0:02:26]} Rdf8 {[%emt 0:01:21]} 30. b5 {[%emt 0:01:57]} axb5 {[%emt 0:00:52]} 31. axb5 {[%emt 0:30:02]} fxe3 {[%emt 0:30:58]} 32. fxe3 {[%emt 0:00:20]} Ba2 {[%emt 0:01:53]} 33. Rbc1 {[%emt 0:03:02]} cxb5 {[%emt 0:03:08]} 34. R3c2 {[%emt 0:00:19]} Bc4 {[%emt 0:00:53]} 35. Naxc4 {[%emt 0:00:19]} bxc4 {[%emt 0:00:05]} 36. Rxc4 {[%emt 0:01:47]} Rf2 {[%emt 0:03:58]} 37. R4c2 {[%emt 0:04:03]} Rxc2 {[%emt 0:00:41]} 38. Rxc2 {[%emt 0:00:01]} Rd8 {[%emt 0:01:13]} 39. Rb2 {[%emt 0:00:21]} Nc7 {[%emt 0:01:12]} 40. h4 {[%emt 0:00:00]} Rd6 {[%emt 0:00:00]} 41. Kh2 {[%emt 0:00:00]} Rf6 {[%emt 0:00:00]} 42. Kg3 {[%emt 0:00:00]} Rf7 {[%emt 0:00:00]} 43. Rb3 {[%emt 0:00:00]} Ne8 {[%emt 0:00:00]} 44. Nc4 {[%emt 0:00:00]} Rc7 {[%emt 0:00:00]} 45. Na5 {[%emt 0:00:00]} Nd6 {[%emt 0:00:00]} 46. Rb6 {[%emt 0:00:00]} Nf5+ {[%emt 0:00:00]} 47. Kf4 {[%emt 0:00:00]} Nxh4 {[%emt 0:00:00]} 48. g3 {[%emt 0:03:27]} 1/2-1/2

[Event "DMP Ekstraliga 2020"]
[Site "Krakow"]
[Date "2020.08.29"]
[Round "4.12"]
[White "Bulmaga, Irina"]
[Black "Socko, Monika"]
[Result "1/2-1/2"]
[ECO "B12"]
[WhiteElo "2434"]
[BlackElo "2428"]
[Annotator "ChessBase"]
[PlyCount "111"]
[EventDate "2020.08.26"]
[EventType "team-tourn"]
[EventCountry "POL"]
[SourceTitle "playchess.com"]
[Source "ChessBase"]
[SourceQuality "1"]
[WhiteTeam "Hetman Plock"]
[BlackTeam "HETMAN Katowice"]
[TimeControl "30/5400+30:1800+30"]

1. e4 {[%emt 0:00:00]} c6 {[%emt 0:00:00]} 2. d4 {[%emt 0:00:00]} d5 {[%emt 0:00:00]} 3. e5 {[%emt 0:00:00]} c5 {[%emt 0:00:00]} 4. dxc5 {[%emt 0:00:00]} e6 {[%emt 0:00:00]} 5. a3 {[%emt 0:00:03]} Nc6 {[%emt 0:00:05]} 6. Nf3 {[%emt 0:00:40]} Bxc5 {[%emt 0:00:03]} 7. b4 {[%emt 0:01:40]} Bb6 {[%emt 0:00:07]} 8. Bb2 {[%emt 0:01:39]} f6 {[%emt 0:00:26]} 9. Bd3 {[%emt 0:11:20]} fxe5 {[%emt 0:02:07]} 10. O-O {[%emt 0:04:37]} Nf6 {[%emt 0:15:26]} 11. Nxe5 {[%emt 0:02:56]} Nxe5 {[%emt 0:01:06]} 12. Bxe5 {[%emt 0:00:06]} O-O {[%emt 0:00:08]} 13. Nd2 {[%emt 0:03:08]} Bd7 {[%emt 0:01:14]} 14. c4 {[%emt 0:02:27]} a5 {[%emt 0:04:18]} 15. Qe2 {[%emt 0:16:03]} axb4 {[%emt 0:05:01]} 16. axb4 {[%emt 0:00:18]} Rxa1 {[%emt 0:04:21]} 17. Rxa1 {[%emt 0:03:30]} Bc7 {[%emt 0:06:20]} 18. Bxc7 {[%emt 0:11:56]} Qxc7 {[%emt 0:00:05]} 19. h3 {[%emt 0:00:07]} Qf4 {[%emt 0:13:47]} 20. Nf3 {[%emt 0:05:33]} dxc4 {[%emt 0:06:48]} 21. Bxc4 {[%emt 0:00:53]} Nd5 {[%emt 0:00:25]} 22. Qd3 {[%emt 0:17:12]} Qf6 {[%emt 0:15:28]} 23. Re1 {[%emt 0:10:57]} Bc6 {[%emt 0:04:28]} 24. Qd4 {[%emt 0:03:58]} Nf4 {[%emt 0:08:47]} 25. Qxf6 {[%emt 0:01:59]} Rxf6 {[%emt 0:00:31]} 26. Nd4 {[%emt 0:00:24]} Bd5 {[%emt 0:00:45]} 27. Bxd5 {[%emt 0:01:30]} Nxd5 {[%emt 0:01:07]} 28. b5 {[%emt 0:00:32]} Kf7 {[%emt 0:01:26]} 29. g3 {[%emt 0:00:09]} Ke7 {[%emt 0:00:37]} 30. f4 {[%emt 0:00:12]} Kd6 {[%emt 0:00:09]} 31. Kg2 {[%emt 0:30:31]} h6 {[%emt 0:32:59]} 32. h4 {[%emt 0:00:08]} Ne7 {[%emt 0:00:53]} 33. Re5 {[%emt 0:01:00]} Ng6 {[%emt 0:01:40]} 34. Re2 {[%emt 0:01:00]} Ne7 {[%emt 0:00:17]} 35. Re5 {[%emt 0:00:06]} Ng6 {[%emt 0:00:03]} 36. Re1 {[%emt 0:00:04]} Ne7 {[%emt 0:00:18]} 37. h5 {[%emt 0:01:06]} Nf5 {[%emt 0:01:22]} 38. Nb3 {[%emt 0:00:14]} Rf8 {[%emt 0:00:37]} 39. Rd1+ {[%emt 0:00:58]} Ke7 {[%emt 0:00:19]} 40. Kf3 {[%emt 0:00:00]} Ra8 {[%emt 0:00:00]} 41. Nc5 {[%emt 0:00:00]} Ra3+ {[%emt 0:00:00]} 42. Kf2 {[%emt 0:00:00]} b6 {[%emt 0:00:00]} 43. Nd3 {[%emt 0:00:00]} Rb3 {[%emt 0:00:00]} 44. Ne5 {[%emt 0:00:00]} Rb2+ {[%emt 0:00:00]} 45. Kf3 {[%emt 0:00:00]} Rb3+ {[%emt 0:00:00]} 46. Kf2 {[%emt 0:00:00]} Nxg3 {[%emt 0:00:00]} 47. Rd7+ {[%emt 0:00:00]} Ke8 {[%emt 0:00:03]} 48. Rb7 {[%emt 0:00:00]} Ne4+ {[%emt 0:01:28]} 49. Kg2 {[%emt 0:00:00]} Rxb5 {[%emt 0:01:10]} 50. Rxg7 {[%emt 0:00:00]} Nf6 {[%emt 0:01:01]} 51. Rg6 {[%emt 0:00:00]} Nxh5 {[%emt 0:00:34]} 52. Rxe6+ {[%emt 0:00:00]} Kf8 {[%emt 0:02:28]} 53. Nd7+ {[%emt 0:01:25]} Kf7 {[%emt 0:00:08]} 54. Rxb6 {[%emt 0:00:19]} Nxf4+ {[%emt 0:00:20]} 55. Kf3 {[%emt 0:00:12]} Rxb6 56. Ke4 1/2-1/2

[Event "DMP Ekstraliga 2020"]
[Site "Krakow"]
[Date "2020.08.29"]
[Round "4.13"]
[White "Antoniewski, Rafal"]
[Black "Moranda, Wojciech"]
[Result "1/2-1/2"]
[ECO "B43"]
[WhiteElo "2490"]
[BlackElo "2605"]
[Annotator "ChessBase"]
[PlyCount "32"]
[EventDate "2020.08.26"]
[EventType "team-tourn"]
[EventCountry "POL"]
[SourceTitle "playchess.com"]
[Source "ChessBase"]
[SourceQuality "1"]
[WhiteTeam "Wrzos Miedzyborow"]
[BlackTeam "Wieza Pegow"]
[TimeControl "30/5400+30:1800+30"]

1. e4 {[%emt 0:00:00]} c5 {[%emt 0:00:00]} 2. Nf3 {[%emt 0:00:08]} e6 {[%emt 0:00:00]} 3. Nc3 {[%emt 0:01:39]} a6 {[%emt 0:03:56]} 4. d4 {[%emt 0:01:50]} cxd4 {[%emt 0:00:23]} 5. Nxd4 {[%emt 0:00:06]} Qc7 {[%emt 0:00:13]} 6. Bd3 {[%emt 0:02:18]} Nf6 {[%emt 0:02:31]} 7. f4 {[%emt 0:02:30]} d6 {[%emt 0:02:09]} 8. Qf3 {[%emt 0:01:51]} Nbd7 {[%emt 0:10:57]} 9. g4 {[%emt 0:17:40]} Nc5 {[%emt 0:03:41]} 10. g5 {[%emt 0:00:14]} Nfd7 {[%emt 0:01:22]} 11. Be3 {[%emt 0:25:59]} b5 {[%emt 0:07:41]} 12. a3 {[%emt 0:00:14]} Bb7 {[%emt 0:16:09]} 13. h4 {[%emt 0:01:17]} Nb6 {[%emt 0:15:22]} 14. O-O {[%emt 0:09:22]} d5 {[%emt 0:07:05]} 15. e5 {[%emt 0:03:38]} Nc4 {[%emt 0:00:59]} 16. b4 {[%emt 0:00:56]} Nxd3 {[%emt 0:11:20]} 1/2-1/2

[Event "DMP Ekstraliga 2020"]
[Site "Krakow"]
[Date "2020.08.29"]
[Round "4.14"]
[White "Dziuba, Marcin"]
[Black "Cyborowski, Lukasz"]
[Result "1/2-1/2"]
[ECO "E06"]
[WhiteElo "2590"]
[BlackElo "2508"]
[Annotator "ChessBase"]
[PlyCount "131"]
[EventDate "2020.08.26"]
[EventType "team-tourn"]
[EventCountry "POL"]
[SourceTitle "playchess.com"]
[Source "ChessBase"]
[SourceQuality "1"]
[WhiteTeam "Wieza Pegow"]
[BlackTeam "Wrzos Miedzyborow"]
[TimeControl "30/5400+30:1800+30"]

1. d4 {[%emt 0:00:00]} d5 {[%emt 0:00:19]} 2. c4 {[%emt 0:00:00]} e6 {[%emt 0:00:07]} 3. Nf3 {[%emt 0:00:00]} Nf6 {[%emt 0:00:52]} 4. g3 {[%emt 0:00:03]} Be7 {[%emt 0:02:11]} 5. Bg2 {[%emt 0:00:29]} O-O {[%emt 0:00:08]} 6. O-O {[%emt 0:00:04]} dxc4 {[%emt 0:00:56]} 7. Qa4 {[%emt 0:02:52]} a6 {[%emt 0:01:42]} 8. Qxc4 {[%emt 0:00:15]} b5 {[%emt 0:00:08]} 9. Qc2 {[%emt 0:00:04]} Bb7 {[%emt 0:00:05]} 10. Bd2 {[%emt 0:01:48]} Be4 {[%emt 0:01:03]} 11. Qc1 {[%emt 0:00:30]} Bb7 {[%emt 0:00:18]} 12. Bf4 {[%emt 0:04:59]} Nd5 {[%emt 0:16:48]} 13. Nc3 {[%emt 0:01:49]} Nxf4 {[%emt 0:11:57]} 14. Qxf4 {[%emt 0:00:16]} Nd7 {[%emt 0:00:18]} 15. Rfd1 {[%emt 0:08:34]} Bd6 {[%emt 0:07:53]} 16. Qh4 {[%emt 0:01:49]} Qxh4 {[%emt 0:10:22]} 17. Nxh4 {[%emt 0:00:15]} Bxg2 {[%emt 0:00:05]} 18. Kxg2 {[%emt 0:00:20]} f5 {[%emt 0:00:13]} 19. Rac1 {[%emt 0:14:50]} Rac8 {[%emt 0:04:04]} 20. Nf3 {[%emt 0:05:49]} Nb6 {[%emt 0:07:38]} 21. Rc2 {[%emt 0:05:21]} c5 {[%emt 0:04:46]} 22. dxc5 {[%emt 0:17:46]} Bxc5 {[%emt 0:00:06]} 23. Rdc1 {[%emt 0:00:08]} Bb4 {[%emt 0:03:18]} 24. e3 {[%emt 0:06:52]} Rc4 {[%emt 0:25:08]} 25. b3 {[%emt 0:06:42]} Rxc3 {[%emt 0:00:31]} 26. Rxc3 {[%emt 0:00:04]} Bxc3 {[%emt 0:00:03]} 27. Rxc3 {[%emt 0:00:06]} Rc8 {[%emt 0:00:06]} 28. Rd3 {[%emt 0:02:10]} Nd5 {[%emt 0:00:07]} 29. Ng5 {[%emt 0:00:54]} Nc3 {[%emt 0:02:40]} 30. Nxe6 {[%emt 0:03:28]} Nxa2 {[%emt 0:00:04]} 31. Rd7 {[%emt 0:31:57]} g6 {[%emt 0:30:05]} 32. Rg7+ {[%emt 0:00:03]} Kh8 {[%emt 0:00:03]} 33. Ra7 {[%emt 0:00:07]} Nb4 {[%emt 0:00:05]} 34. h4 {[%emt 0:01:06]} Kg8 {[%emt 0:00:42]} 35. h5 {[%emt 0:00:39]} gxh5 {[%emt 0:00:14]} 36. Kh3 {[%emt 0:02:07]} Nd3 {[%emt 0:00:47]} 37. f3 {[%emt 0:08:45]} Ne5 {[%emt 0:00:35]} 38. f4 {[%emt 0:01:10]} Nf3 {[%emt 0:00:06]} 39. Kg2 {[%emt 0:01:45]} Ne1+ {[%emt 0:01:37]} 40. Kf1 {[%emt 0:00:00]} Nd3 {[%emt 0:00:00]} 41. Nd4 {[%emt 0:00:00]} Rc3 {[%emt 0:00:00]} 42. Nxf5 {[%emt 0:00:00]} Rxb3 {[%emt 0:00:00]} 43. Nh6+ {[%emt 0:00:00]} Kf8 {[%emt 0:00:00]} 44. Ke2 {[%emt 0:00:00]} Nb4 {[%emt 0:00:00]} 45. e4 {[%emt 0:00:00]} Nc6 {[%emt 0:02:44]} 46. Ra8+ {[%emt 0:00:00]} Ke7 {[%emt 0:00:14]} 47. Nf5+ {[%emt 0:00:00]} Kd7 {[%emt 0:00:03]} 48. Rxa6 {[%emt 0:00:00]} b4 {[%emt 0:00:45]} 49. Rb6 {[%emt 0:02:23]} Rb2+ {[%emt 0:00:52]} 50. Kd3 {[%emt 0:01:03]} Kc7 {[%emt 0:00:04]} 51. Rb5 {[%emt 0:00:07]} Rb3+ {[%emt 0:00:42]} 52. Kd2 {[%emt 0:04:49]} Rb2+ {[%emt 0:01:17]} 53. Kd3 {[%emt 0:01:10]} Rb3+ {[%emt 0:00:01]} 54. Kd2 {[%emt 0:00:40]} Rb2+ {[%emt 0:00:01]} 55. Kc1 {[%emt 0:00:03]} Rf2 {[%emt 0:01:32]} 56. Rc5 {[%emt 0:01:15]} Kb6 {[%emt 0:00:16]} 57. Rc2 {[%emt 0:00:17]} Rf1+ {[%emt 0:00:27]} 58. Kb2 {[%emt 0:00:05]} Re1 {[%emt 0:01:12]} 59. e5 {[%emt 0:00:25]} h4 {[%emt 0:00:25]} 60. gxh4 {[%emt 0:00:23]} Re4 {[%emt 0:00:21]} 61. Rf2 {[%emt 0:00:37]} Kc5 {[%emt 0:00:16]} 62. Nd6 {[%emt 0:00:27]} Re3 {[%emt 0:00:14]} 63. Rc2+ {[%emt 0:01:00]} Kd5 {[%emt 0:00:08]} 64. Nc4 {[%emt 0:00:44]} Rc3 {[%emt 0:00:45]} 65. Nb6+ {[%emt 0:00:34]} Ke4 {[%emt 0:00:16]} 66. Rxc3 {[%emt 0:00:26]} 1/2-1/2